[Event "Titled Tuesday Blitz June 22 2021"]
[White "Sarana, Alexey"]
[Black "Karthikeyan, Murali"]
[WhiteFideId "24133795"]
[BlackFideId "5074452"]
[WhiteElo "2629"]
[BlackElo "2564"]
[Result "1-0"]
[Round "03"]
[TimeControl "180+1"]
[Date "2021.06.22"]
[WhiteClock "0:00:04"]
[BlackClock "0:00:03"]

1. d4 {[%clk 0:03:00]}  Nf6 {[%clk 0:02:59]} 2. c4 {[%clk 0:03:01]}  e6 {[%clk 0:02:59]} 3. Nf3 {[%clk 0:03:02]}  d5 {[%clk 0:02:58]} 4. Nc3 {[%clk 0:03:02]}  Be7 {[%clk 0:02:54]} 5. g3 {[%clk 0:02:59]}  O-O {[%clk 0:02:51]} 6. Bg2 {[%clk 0:02:59]}  dxc4 {[%clk 0:02:51]} 7. Ne5 {[%clk 0:02:59]}  Nc6 {[%clk 0:02:51]} 8. Bxc6 {[%clk 0:02:59]}  bxc6 {[%clk 0:02:52]} 9. Nxc6 {[%clk 0:02:59]}  Qe8 {[%clk 0:02:53]} 10. Nxe7+ {[%clk 0:03:00]}  Qxe7 {[%clk 0:02:54]} 11. Qa4 {[%clk 0:03:00]}  c5 {[%clk 0:02:45]} 12. dxc5 {[%clk 0:03:01]}  Qxc5 {[%clk 0:02:45]} 13. Be3 {[%clk 0:03:02]}  Qc7 {[%clk 0:02:40]} 14. Rd1 {[%clk 0:03:02]}  Qb7 {[%clk 0:02:19]} 15. O-O {[%clk 0:02:58]}  e5 {[%clk 0:02:19]} 16. f3 {[%clk 0:02:53]}  Bh3 {[%clk 0:02:01]} 17. Rfe1 {[%clk 0:02:47]}  Qxb2 {[%clk 0:01:56]} 18. Qa5 {[%clk 0:02:47]}  Rfe8 {[%clk 0:01:27]} 19. Bg5 {[%clk 0:02:38]}  Qb6+ {[%clk 0:01:27]} 20. Qxb6 {[%clk 0:02:33]}  axb6 {[%clk 0:01:28]} 21. Bxf6 {[%clk 0:02:27]}  gxf6 {[%clk 0:01:28]} 22. Rb1 {[%clk 0:02:27]}  Ra3 {[%clk 0:01:19]} 23. Rec1 {[%clk 0:02:26]}  Re6 {[%clk 0:01:16]} 24. Kf2 {[%clk 0:02:25]}  h5 {[%clk 0:01:05]} 25. Rb4 {[%clk 0:02:19]}  Rc6 {[%clk 0:00:55]} 26. Nd5 {[%clk 0:01:57]}  Kg7 {[%clk 0:00:54]} 27. Nxb6 {[%clk 0:01:30]}  c3 {[%clk 0:00:43]} 28. Ra4 {[%clk 0:01:23]}  Rxa4 {[%clk 0:00:40]} 29. Nxa4 {[%clk 0:01:24]}  c2 {[%clk 0:00:40]} 30. Nb2 {[%clk 0:01:08]}  Be6 {[%clk 0:00:35]} 31. Nd3 {[%clk 0:01:08]}  Rc4 {[%clk 0:00:19]} 32. Ne1 {[%clk 0:01:01]}  Ra4 {[%clk 0:00:17]} 33. Nxc2 {[%clk 0:00:57]}  Rxa2 {[%clk 0:00:18]} 34. Ne3 {[%clk 0:00:57]}  f5 {[%clk 0:00:14]} 35. Rc6 {[%clk 0:00:54]}  Kg6 {[%clk 0:00:12]} 36. Nc4 {[%clk 0:00:44]}  Kf6 {[%clk 0:00:11]} 37. Nb6 {[%clk 0:00:42]}  Ke7 {[%clk 0:00:10]} 38. Rc7+ {[%clk 0:00:40]}  Kf6 {[%clk 0:00:10]} 39. h4 {[%clk 0:00:37]}  Rb2 {[%clk 0:00:09]} 40. Rc6 {[%clk 0:00:37]}  Ke7 {[%clk 0:00:08]} 41. Na4 {[%clk 0:00:33]}  Rb4 {[%clk 0:00:08]} 42. Ra6 {[%clk 0:00:26]}  f4 {[%clk 0:00:08]} 43. Nc5 {[%clk 0:00:24]}  fxg3+ {[%clk 0:00:08]} 44. Kxg3 {[%clk 0:00:24]}  Rb2 {[%clk 0:00:08]} 45. e4 {[%clk 0:00:17]}  Bc4 {[%clk 0:00:07]} 46. Ra1 {[%clk 0:00:16]}  Rc2 {[%clk 0:00:05]} 47. Ra7+ {[%clk 0:00:12]}  Kd6 {[%clk 0:00:05]} 48. Nb7+ {[%clk 0:00:12]}  Kc7 {[%clk 0:00:03]} 49. Na5+ {[%clk 0:00:06]}  Kb6 {[%clk 0:00:04]} 50. Nxc4+ {[%clk 0:00:07]}  Kxa7 {[%clk 0:00:04]} 51. Nxe5 {[%clk 0:00:07]}  Rc7 {[%clk 0:00:02]} 52. Nd3 {[%clk 0:00:07]}  Kb6 {[%clk 0:00:03]} 53. Nf4 {[%clk 0:00:07]}  Rc5 {[%clk 0:00:02]} 54. Nd5+ {[%clk 0:00:08]}  Kc6 {[%clk 0:00:03]} 55. Kf4 {[%clk 0:00:09]}  Rc1 {[%clk 0:00:03]} 56. Nf6 {[%clk 0:00:08]}  Rh1 {[%clk 0:00:02]} 57. Kg5 {[%clk 0:00:08]}  Rf1 {[%clk 0:00:02]} 58. f4 {[%clk 0:00:08]}  Kd6 {[%clk 0:00:03]} 59. Nxh5 {[%clk 0:00:08]}  Ke7 {[%clk 0:00:03]} 60. Ng3 {[%clk 0:00:08]}  Rg1 {[%clk 0:00:03]} 61. Kg4 {[%clk 0:00:09]}  Kf6 {[%clk 0:00:04]} 62. Kf3 {[%clk 0:00:09]}  Rb1 {[%clk 0:00:04]} 63. e5+ {[%clk 0:00:09]}  Ke6 {[%clk 0:00:04]} 64. Kg4 {[%clk 0:00:10]}  Rg1 {[%clk 0:00:04]} 65. h5 {[%clk 0:00:09]}  Ra1 {[%clk 0:00:04]} 66. Ne4 {[%clk 0:00:08]}  f5+ {[%clk 0:00:04]} 67. exf6 {[%clk 0:00:07]}  Re1 {[%clk 0:00:03]} 68. f5+ {[%clk 0:00:06]}  Kf7 {[%clk 0:00:03]} 69. Kf4 {[%clk 0:00:06]}  Rf1+ {[%clk 0:00:04]} 70. Ke5 {[%clk 0:00:06]}  Re1 {[%clk 0:00:04]} 71. h6 {[%clk 0:00:07]}  Kg8 {[%clk 0:00:04]} 72. Kd5 {[%clk 0:00:05]}  Re2 {[%clk 0:00:05]} 73. Ng5 {[%clk 0:00:05]}  Rg2 {[%clk 0:00:03]} 74. h7+ {[%clk 0:00:04]}  Kh8 {[%clk 0:00:03]} 75. f7 {[%clk 0:00:04]} 1-0


[Site "https://www.chess.com"]

[Event "Titled Tuesday Blitz June 22 2021"]
[White "Shahaliyev, Ismayil"]
[Black "Nakamura, Hikaru"]
[WhiteFideId "13406388"]
[BlackFideId "2016192"]
[WhiteElo "2105"]
[BlackElo "2900"]
[Result "0-1"]
[Round "03"]
[TimeControl "180+1"]
[Date "2021.06.22"]
[WhiteClock "0:01:21"]
[BlackClock "0:02:18"]

1. e4 {[%clk 0:03:00]}  c5 {[%clk 0:02:55]} 2. Nf3 {[%clk 0:02:59]}  d6 {[%clk 0:02:55]} 3. d4 {[%clk 0:02:58]}  cxd4 {[%clk 0:02:56]} 4. Nxd4 {[%clk 0:02:58]}  Nf6 {[%clk 0:02:57]} 5. Nc3 {[%clk 0:02:59]}  a6 {[%clk 0:02:58]} 6. h3 {[%clk 0:02:59]}  g6 {[%clk 0:02:57]} 7. g4 {[%clk 0:02:57]}  Bg7 {[%clk 0:02:58]} 8. Bg2 {[%clk 0:02:56]}  Bd7 {[%clk 0:02:57]} 9. a4 {[%clk 0:02:53]}  Nc6 {[%clk 0:02:56]} 10. Nde2 {[%clk 0:02:52]}  Rc8 {[%clk 0:02:50]} 11. O-O {[%clk 0:02:51]}  O-O {[%clk 0:02:50]} 12. Ng3 {[%clk 0:02:45]}  Na5 {[%clk 0:02:48]} 13. g5 {[%clk 0:02:44]}  Ne8 {[%clk 0:02:46]} 14. Nd5 {[%clk 0:02:31]}  Nc4 {[%clk 0:02:46]} 15. c3 {[%clk 0:02:29]}  Nc7 {[%clk 0:02:46]} 16. Qe2 {[%clk 0:02:18]}  Nxd5 {[%clk 0:02:42]} 17. exd5 {[%clk 0:02:19]}  b5 {[%clk 0:02:43]} 18. axb5 {[%clk 0:02:16]}  Bxb5 {[%clk 0:02:38]} 19. Re1 {[%clk 0:02:11]}  Nxb2 {[%clk 0:02:31]} 20. Qxe7 {[%clk 0:01:35]}  Nd3 {[%clk 0:02:19]} 21. Qxd8 {[%clk 0:01:30]}  Rfxd8 {[%clk 0:02:20]} 22. Re3 {[%clk 0:01:21]}  Bxc3 {[%clk 0:02:18]} 0-1


[Site "https://www.chess.com"]

[Event "Titled Tuesday Blitz June 22 2021"]
[White "Dang, Hoang Son"]
[Black "Muradli, Mahammad"]
[WhiteFideId "12402435"]
[BlackFideId "13409301"]
[WhiteElo "2248"]
[BlackElo "2482"]
[Result "1-0"]
[Round "04"]
[TimeControl "180+1"]
[Date "2021.06.22"]
[WhiteClock "0:00:21"]
[BlackClock "0:00:01"]

1. d4 {[%clk 0:03:00]}  d6 {[%clk 0:02:56]} 2. Nf3 {[%clk 0:03:00]}  g6 {[%clk 0:02:57]} 3. g3 {[%clk 0:03:00]}  Bg7 {[%clk 0:02:57]} 4. Bg2 {[%clk 0:03:00]}  Nd7 {[%clk 0:02:58]} 5. O-O {[%clk 0:03:01]}  e5 {[%clk 0:02:59]} 6. c4 {[%clk 0:03:02]}  Ne7 {[%clk 0:02:59]} 7. Nc3 {[%clk 0:03:01]}  O-O {[%clk 0:03:00]} 8. dxe5 {[%clk 0:03:01]}  dxe5 {[%clk 0:02:56]} 9. e4 {[%clk 0:02:55]}  c5 {[%clk 0:02:43]} 10. Qd6 {[%clk 0:02:30]}  Nc6 {[%clk 0:02:37]} 11. Nd5 {[%clk 0:02:27]}  Nd4 {[%clk 0:02:09]} 12. Nxd4 {[%clk 0:02:27]}  exd4 {[%clk 0:02:10]} 13. f4 {[%clk 0:02:22]}  Re8 {[%clk 0:01:57]} 14. e5 {[%clk 0:02:09]}  Re6 {[%clk 0:01:28]} 15. Qc7 {[%clk 0:02:08]}  Qf8 {[%clk 0:01:29]} 16. Bd2 {[%clk 0:01:46]}  Rb8 {[%clk 0:01:20]} 17. f5 {[%clk 0:01:22]}  Rc6 {[%clk 0:01:19]} 18. Qa5 {[%clk 0:00:57]}  Bxe5 {[%clk 0:01:07]} 19. Bg5 {[%clk 0:00:42]}  Ra6 {[%clk 0:00:57]} 20. Qd2 {[%clk 0:00:42]}  d3 {[%clk 0:00:37]} 21. Rae1 {[%clk 0:00:40]}  Bd4+ {[%clk 0:00:37]} 22. Kh1 {[%clk 0:00:40]}  Ne5 {[%clk 0:00:34]} 23. Be7 {[%clk 0:00:37]}  Qg7 {[%clk 0:00:17]} 24. f6 {[%clk 0:00:37]}  Qh8 {[%clk 0:00:17]} 25. Qh6 {[%clk 0:00:26]}  Be6 {[%clk 0:00:09]} 26. Bxc5 {[%clk 0:00:21]}  Bxd5 {[%clk 0:00:02]} 27. Bxd4 {[%clk 0:00:20]}  Bxg2+ {[%clk 0:00:01]} 28. Kxg2 {[%clk 0:00:21]}  Ng4 {[%clk 0:00:01]} 29. Qf4 {[%clk 0:00:21]}  h5 {[%clk 0:00:02]} 30. Qxb8+ {[%clk 0:00:21]}  Kh7 {[%clk 0:00:02]} 31. Qxh8+ {[%clk 0:00:21]}  Kxh8 {[%clk 0:00:03]} 32. h3 {[%clk 0:00:21]}  Nh6 {[%clk 0:00:03]} 33. Re8+ {[%clk 0:00:21]}  Kh7 {[%clk 0:00:04]} 34. g4 {[%clk 0:00:20]}  h4 {[%clk 0:00:03]} 35. Rd1 {[%clk 0:00:18]}  Rd6 {[%clk 0:00:02]} 36. Rxd3 {[%clk 0:00:18]}  b6 {[%clk 0:00:03]} 37. b4 {[%clk 0:00:19]}  Rd7 {[%clk 0:00:02]} 38. c5 {[%clk 0:00:19]}  bxc5 {[%clk 0:00:03]} 39. bxc5 {[%clk 0:00:20]}  g5 {[%clk 0:00:02]} 40. Re7 {[%clk 0:00:19]}  Rd5 {[%clk 0:00:02]} 41. c6 {[%clk 0:00:20]}  Rd6 {[%clk 0:00:01]} 42. c7 {[%clk 0:00:19]}  Rc6 {[%clk 0:00:01]} 43. Rc3 {[%clk 0:00:20]}  Rd6 {[%clk 0:00:02]} 44. c8=Q {[%clk 0:00:20]}  Rxd4 {[%clk 0:00:02]} 45. Qf8 {[%clk 0:00:20]}  Rd2+ {[%clk 0:00:02]} 46. Kf3 {[%clk 0:00:20]}  Nf5 {[%clk 0:00:01]} 47. gxf5 {[%clk 0:00:21]} 1-0


[Site "https://www.chess.com"]

[Event "Titled Tuesday Blitz June 22 2021"]
[White "Dobrov, Vladimir"]
[Black "Sarana, Alexey"]
[WhiteFideId "4136594"]
[BlackFideId "24133795"]
[WhiteElo "2614"]
[BlackElo "2629"]
[Result "0-1"]
[Round "04"]
[TimeControl "180+1"]
[Date "2021.06.22"]
[WhiteClock "0:00:14"]
[BlackClock "0:00:50"]

1. Nf3 {[%clk 0:03:00]}  d5 {[%clk 0:03:00]} 2. e3 {[%clk 0:02:58]}  Nf6 {[%clk 0:03:00]} 3. c4 {[%clk 0:02:58]}  e6 {[%clk 0:03:01]} 4. b3 {[%clk 0:02:56]}  Bd6 {[%clk 0:03:01]} 5. Bb2 {[%clk 0:02:57]}  O-O {[%clk 0:03:02]} 6. Nc3 {[%clk 0:02:56]}  Re8 {[%clk 0:03:01]} 7. d4 {[%clk 0:02:55]}  b6 {[%clk 0:02:58]} 8. Be2 {[%clk 0:02:43]}  Bb7 {[%clk 0:02:58]} 9. O-O {[%clk 0:02:43]}  Nbd7 {[%clk 0:02:56]} 10. Rc1 {[%clk 0:02:36]}  a6 {[%clk 0:02:56]} 11. Qc2 {[%clk 0:02:31]}  Qe7 {[%clk 0:02:56]} 12. Rfd1 {[%clk 0:02:29]}  Rac8 {[%clk 0:02:44]} 13. Qb1 {[%clk 0:02:27]}  dxc4 {[%clk 0:02:41]} 14. bxc4 {[%clk 0:02:16]}  c5 {[%clk 0:02:41]} 15. Ba1 {[%clk 0:01:44]}  cxd4 {[%clk 0:02:36]} 16. exd4 {[%clk 0:01:34]}  Bf4 {[%clk 0:02:35]} 17. Rc2 {[%clk 0:01:32]}  e5 {[%clk 0:02:28]} 18. c5 {[%clk 0:01:20]}  e4 {[%clk 0:02:22]} 19. Ne5 {[%clk 0:01:02]}  e3 {[%clk 0:02:08]} 20. Bf3 {[%clk 0:00:52]}  Nxe5 {[%clk 0:01:51]} 21. Bxb7 {[%clk 0:00:50]}  Qxb7 {[%clk 0:01:41]} 22. dxe5 {[%clk 0:00:50]}  Ng4 {[%clk 0:01:41]} 23. f3 {[%clk 0:00:49]}  Bxh2+ {[%clk 0:01:35]} 24. Kf1 {[%clk 0:00:46]}  Rxc5 {[%clk 0:01:22]} 25. fxg4 {[%clk 0:00:44]}  Rcxe5 {[%clk 0:01:22]} 26. Re2 {[%clk 0:00:23]}  Qc6 {[%clk 0:01:17]} 27. Rd4 {[%clk 0:00:19]}  Qf6+ {[%clk 0:01:14]} 28. Ke1 {[%clk 0:00:18]}  Bg3+ {[%clk 0:00:59]} 29. Kd1 {[%clk 0:00:17]}  Rc5 {[%clk 0:01:00]} 30. Qd3 {[%clk 0:00:17]}  Qf1+ {[%clk 0:00:57]} 31. Kc2 {[%clk 0:00:17]}  Qxa1 {[%clk 0:00:57]} 32. Qxe3 {[%clk 0:00:14]}  Rxc3+ {[%clk 0:00:50]} 0-1


[Site "https://www.chess.com"]

[Event "Titled Tuesday Blitz June 22 2021"]
[White "Hess, Robert"]
[Black "Kollars, Dmitrij"]
[WhiteFideId "2022036"]
[BlackFideId "12909572"]
[WhiteElo "2557"]
[BlackElo "2576"]
[Result "0-1"]
[Round "04"]
[TimeControl "180+1"]
[Date "2021.06.22"]
[WhiteClock "0:00:10"]
[BlackClock "0:00:31"]

1. e4 {[%clk 0:02:59]}  e5 {[%clk 0:02:56]} 2. Nc3 {[%clk 0:02:59]}  Nf6 {[%clk 0:02:56]} 3. Bc4 {[%clk 0:02:58]}  Nxe4 {[%clk 0:02:56]} 4. Qh5 {[%clk 0:02:58]}  Nd6 {[%clk 0:02:56]} 5. Bb3 {[%clk 0:02:58]}  Be7 {[%clk 0:02:55]} 6. Nf3 {[%clk 0:02:57]}  Nc6 {[%clk 0:02:53]} 7. Nxe5 {[%clk 0:02:55]}  Nxe5 {[%clk 0:02:54]} 8. Qxe5 {[%clk 0:02:55]}  O-O {[%clk 0:02:54]} 9. O-O {[%clk 0:02:56]}  c6 {[%clk 0:02:39]} 10. d4 {[%clk 0:02:50]}  Ne8 {[%clk 0:02:38]} 11. d5 {[%clk 0:02:44]}  d6 {[%clk 0:02:34]} 12. Qg3 {[%clk 0:02:30]}  c5 {[%clk 0:02:33]} 13. Re1 {[%clk 0:02:28]}  Bh4 {[%clk 0:02:30]} 14. Qf4 {[%clk 0:02:24]}  h6 {[%clk 0:02:27]} 15. Ba4 {[%clk 0:02:09]}  Bg5 {[%clk 0:02:14]} 16. Qg3 {[%clk 0:02:09]}  Bxc1 {[%clk 0:02:13]} 17. Raxc1 {[%clk 0:02:09]}  Nf6 {[%clk 0:02:13]} 18. Ne4 {[%clk 0:01:33]}  Nxe4 {[%clk 0:02:05]} 19. Rxe4 {[%clk 0:01:34]}  Bf5 {[%clk 0:02:04]} 20. Re2 {[%clk 0:01:32]}  Qf6 {[%clk 0:01:50]} 21. c4 {[%clk 0:01:29]}  a6 {[%clk 0:01:48]} 22. Qf4 {[%clk 0:00:46]}  g5 {[%clk 0:01:46]} 23. Qf3 {[%clk 0:00:35]}  Kg7 {[%clk 0:01:45]} 24. g4 {[%clk 0:00:25]}  Bg6 {[%clk 0:01:35]} 25. Qxf6+ {[%clk 0:00:17]}  Kxf6 {[%clk 0:01:36]} 26. Rc3 {[%clk 0:00:16]}  b5 {[%clk 0:01:27]} 27. Rf3+ {[%clk 0:00:16]}  Kg7 {[%clk 0:01:26]} 28. cxb5 {[%clk 0:00:09]}  axb5 {[%clk 0:01:27]} 29. Bxb5 {[%clk 0:00:09]}  Rxa2 {[%clk 0:01:27]} 30. b3 {[%clk 0:00:09]}  Ra1+ {[%clk 0:01:27]} 31. Kg2 {[%clk 0:00:09]}  h5 {[%clk 0:01:26]} 32. h3 {[%clk 0:00:08]}  Rh8 {[%clk 0:01:23]} 33. Bd3 {[%clk 0:00:05]}  hxg4 {[%clk 0:01:16]} 34. hxg4 {[%clk 0:00:05]}  Bxd3 {[%clk 0:01:16]} 35. Rxd3 {[%clk 0:00:06]}  Rh4 {[%clk 0:01:16]} 36. Rg3 {[%clk 0:00:05]}  Rd1 {[%clk 0:01:13]} 37. Re4 {[%clk 0:00:06]}  Rxd5 {[%clk 0:01:13]} 38. b4 {[%clk 0:00:06]}  Rh6 {[%clk 0:01:02]} 39. bxc5 {[%clk 0:00:06]}  dxc5 {[%clk 0:01:03]} 40. Rf3 {[%clk 0:00:06]}  Rf6 {[%clk 0:01:02]} 41. Rxf6 {[%clk 0:00:05]}  Kxf6 {[%clk 0:01:03]} 42. Kf3 {[%clk 0:00:04]}  Rd3+ {[%clk 0:00:58]} 43. Ke2 {[%clk 0:00:04]}  Rd4 {[%clk 0:00:58]} 44. Re8 {[%clk 0:00:04]}  Rxg4 {[%clk 0:00:57]} 45. Rc8 {[%clk 0:00:05]}  Re4+ {[%clk 0:00:55]} 46. Kf3 {[%clk 0:00:05]}  Re5 {[%clk 0:00:54]} 47. Kg4 {[%clk 0:00:06]}  Kg6 {[%clk 0:00:54]} 48. Rc6+ {[%clk 0:00:06]}  f6 {[%clk 0:00:54]} 49. f3 {[%clk 0:00:06]}  Rd5 {[%clk 0:00:54]} 50. Rc8 {[%clk 0:00:07]}  Rd4+ {[%clk 0:00:54]} 51. Kg3 {[%clk 0:00:07]}  Rc4 {[%clk 0:00:50]} 52. Rd8 {[%clk 0:00:06]}  Kf5 {[%clk 0:00:49]} 53. Re8 {[%clk 0:00:06]}  Rc1 {[%clk 0:00:49]} 54. Rc8 {[%clk 0:00:06]}  c4 {[%clk 0:00:46]} 55. Rc5+ {[%clk 0:00:06]}  Ke6 {[%clk 0:00:46]} 56. Kf2 {[%clk 0:00:05]}  Kd6 {[%clk 0:00:43]} 57. Rf5 {[%clk 0:00:05]}  Ke6 {[%clk 0:00:43]} 58. Rc5 {[%clk 0:00:06]}  Rc3 {[%clk 0:00:42]} 59. Ke2 {[%clk 0:00:06]}  f5 {[%clk 0:00:36]} 60. Kf2 {[%clk 0:00:04]}  Kf6 {[%clk 0:00:37]} 61. Ke2 {[%clk 0:00:03]}  f4 {[%clk 0:00:37]} 62. Rc6+ {[%clk 0:00:03]}  Kf5 {[%clk 0:00:37]} 63. Rc5+ {[%clk 0:00:03]}  Kg6 {[%clk 0:00:38]} 64. Rc8 {[%clk 0:00:04]}  Rc2+ {[%clk 0:00:35]} 65. Ke1 {[%clk 0:00:03]}  Rc3 {[%clk 0:00:33]} 66. Ke2 {[%clk 0:00:03]}  Re3+ {[%clk 0:00:32]} 67. Kf2 {[%clk 0:00:04]}  c3 {[%clk 0:00:32]} 68. Rc6+ {[%clk 0:00:04]}  Kf5 {[%clk 0:00:32]} 69. Rc8 {[%clk 0:00:05]}  Ke5 {[%clk 0:00:29]} 70. Rc4 {[%clk 0:00:05]}  Kd5 {[%clk 0:00:29]} 71. Rc8 {[%clk 0:00:06]}  Kd4 {[%clk 0:00:29]} 72. Rd8+ {[%clk 0:00:07]}  Kc4 {[%clk 0:00:30]} 73. Rc8+ {[%clk 0:00:07]}  Kb3 {[%clk 0:00:30]} 74. Rb8+ {[%clk 0:00:08]}  Ka2 {[%clk 0:00:31]} 75. Ra8+ {[%clk 0:00:08]}  Kb1 {[%clk 0:00:31]} 76. Rb8+ {[%clk 0:00:08]}  Kc1 {[%clk 0:00:31]} 77. Rb5 {[%clk 0:00:09]}  c2 {[%clk 0:00:30]} 78. Rxg5 {[%clk 0:00:09]}  Kb2 {[%clk 0:00:31]} 79. Rb5+ {[%clk 0:00:10]}  Rb3 {[%clk 0:00:31]} 0-1


[Site "https://www.chess.com"]

[Event "Titled Tuesday Blitz June 22 2021"]
[White "Izoria, Zviad"]
[Black "Howell, David W L"]
[WhiteFideId "13601733"]
[BlackFideId "410608"]
[WhiteElo "2626"]
[BlackElo "2643"]
[Result "1/2-1/2"]
[Round "04"]
[TimeControl "180+1"]
[Date "2021.06.22"]
[WhiteClock "0:01:48"]
[BlackClock "0:01:59"]

1. Nf3 {[%clk 0:03:00]}  c5 {[%clk 0:02:54]} 2. e4 {[%clk 0:02:59]}  e6 {[%clk 0:02:52]} 3. c3 {[%clk 0:02:56]}  d5 {[%clk 0:02:47]} 4. exd5 {[%clk 0:02:54]}  Qxd5 {[%clk 0:02:48]} 5. d4 {[%clk 0:02:54]}  Nf6 {[%clk 0:02:48]} 6. Na3 {[%clk 0:02:54]}  Nc6 {[%clk 0:02:32]} 7. Nb5 {[%clk 0:02:52]}  Qd8 {[%clk 0:02:32]} 8. dxc5 {[%clk 0:02:49]}  Bxc5 {[%clk 0:02:31]} 9. Qxd8+ {[%clk 0:02:47]}  Kxd8 {[%clk 0:02:31]} 10. Bf4 {[%clk 0:02:41]}  Ke7 {[%clk 0:02:22]} 11. b4 {[%clk 0:02:36]}  Bb6 {[%clk 0:02:12]} 12. Bd6+ {[%clk 0:02:14]}  Ke8 {[%clk 0:02:12]} 13. Bc7 {[%clk 0:02:01]}  Ke7 {[%clk 0:02:09]} 14. Bd6+ {[%clk 0:02:01]}  Ke8 {[%clk 0:02:08]} 15. Bc7 {[%clk 0:01:56]}  Ke7 {[%clk 0:01:59]} 16. Bd6+ {[%clk 0:01:48]} 1/2-1/2


[Site "https://www.chess.com"]

[Event "Titled Tuesday Blitz June 22 2021"]
[White "Jia, Haoxiang"]
[Black "Ibrahimli, Murad"]
[WhiteFideId "8602999"]
[BlackFideId "13410229"]
[WhiteElo "2636"]
[BlackElo "2109"]
[Result "0-1"]
[Round "04"]
[TimeControl "180+1"]
[Date "2021.06.22"]
[WhiteClock "0:01:03"]
[BlackClock "0:01:27"]

1. Nf3 {[%clk 0:02:59]}  Nf6 {[%clk 0:02:59]} 2. b3 {[%clk 0:02:58]}  g6 {[%clk 0:02:58]} 3. Bb2 {[%clk 0:02:59]}  Bg7 {[%clk 0:02:59]} 4. d4 {[%clk 0:02:59]}  O-O {[%clk 0:02:59]} 5. e3 {[%clk 0:02:58]}  a5 {[%clk 0:02:54]} 6. a4 {[%clk 0:02:57]}  d6 {[%clk 0:02:53]} 7. Be2 {[%clk 0:02:57]}  Nbd7 {[%clk 0:02:50]} 8. O-O {[%clk 0:02:57]}  c6 {[%clk 0:02:50]} 9. c4 {[%clk 0:02:51]}  Qc7 {[%clk 0:02:49]} 10. Nc3 {[%clk 0:02:50]}  Re8 {[%clk 0:02:47]} 11. d5 {[%clk 0:02:37]}  Nc5 {[%clk 0:02:44]} 12. Nd4 {[%clk 0:02:23]}  e5 {[%clk 0:02:43]} 13. dxe6 {[%clk 0:02:23]}  Bxe6 {[%clk 0:02:41]} 14. Nxe6 {[%clk 0:02:18]}  Rxe6 {[%clk 0:02:41]} 15. Rb1 {[%clk 0:02:14]}  Nfe4 {[%clk 0:02:36]} 16. Nxe4 {[%clk 0:02:12]}  Nxe4 {[%clk 0:02:36]} 17. Bxg7 {[%clk 0:02:11]}  Kxg7 {[%clk 0:02:37]} 18. Bf3 {[%clk 0:02:09]}  Nc5 {[%clk 0:02:36]} 19. Qd4+ {[%clk 0:02:07]}  Kg8 {[%clk 0:02:33]} 20. Rfd1 {[%clk 0:02:08]}  Ra6 {[%clk 0:02:28]} 21. h4 {[%clk 0:02:05]}  h5 {[%clk 0:02:24]} 22. Qc3 {[%clk 0:01:53]}  Qe7 {[%clk 0:02:08]} 23. g3 {[%clk 0:01:52]}  Qf6 {[%clk 0:02:08]} 24. Qxf6 {[%clk 0:01:44]}  Rxf6 {[%clk 0:02:09]} 25. Kg2 {[%clk 0:01:40]}  Rb6 {[%clk 0:02:09]} 26. Rd2 {[%clk 0:01:30]}  Rxb3 {[%clk 0:02:08]} 27. Rbd1 {[%clk 0:01:30]}  Nxa4 {[%clk 0:02:03]} 28. Rxd6 {[%clk 0:01:29]}  Rxd6 {[%clk 0:02:03]} 29. Rxd6 {[%clk 0:01:30]}  Nc5 {[%clk 0:02:03]} 30. Rd8+ {[%clk 0:01:26]}  Kg7 {[%clk 0:02:03]} 31. Ra8 {[%clk 0:01:27]}  a4 {[%clk 0:02:03]} 32. Bd1 {[%clk 0:01:27]}  Rb4 {[%clk 0:02:02]} 33. Be2 {[%clk 0:01:27]}  Rb2 {[%clk 0:01:58]} 34. Kf3 {[%clk 0:01:27]}  b5 {[%clk 0:01:54]} 35. cxb5 {[%clk 0:01:26]}  cxb5 {[%clk 0:01:55]} 36. Ra5 {[%clk 0:01:27]}  Nb3 {[%clk 0:01:50]} 37. Ra7 {[%clk 0:01:15]}  Nd2+ {[%clk 0:01:44]} 38. Kg2 {[%clk 0:01:13]}  Ne4 {[%clk 0:01:40]} 39. Kf3 {[%clk 0:01:12]}  Nc3 {[%clk 0:01:39]} 40. Bd3 {[%clk 0:01:12]}  b4 {[%clk 0:01:39]} 41. Bc4 {[%clk 0:01:12]}  Kf6 {[%clk 0:01:34]} 42. e4 {[%clk 0:01:03]}  Ke5 {[%clk 0:01:31]} 43. Ke3 {[%clk 0:01:03]}  Nd1+ {[%clk 0:01:27]} 0-1


[Site "https://www.chess.com"]

[Event "Titled Tuesday Blitz June 22 2021"]
[White "Jones, Gawain C B"]
[Black "Goryachkina, Aleksandra"]
[WhiteFideId "409561"]
[BlackFideId "4147103"]
[WhiteElo "2657"]
[BlackElo "2441"]
[Result "1-0"]
[Round "04"]
[TimeControl "180+1"]
[Date "2021.06.22"]
[WhiteClock "0:00:51"]
[BlackClock "0:00:01"]

1. Nf3 {[%clk 0:03:00]}  d5 {[%clk 0:02:58]} 2. b3 {[%clk 0:02:59]}  Bg4 {[%clk 0:02:57]} 3. Bb2 {[%clk 0:02:59]}  Nd7 {[%clk 0:02:54]} 4. g3 {[%clk 0:02:58]}  e6 {[%clk 0:02:53]} 5. Bg2 {[%clk 0:02:58]}  Ngf6 {[%clk 0:02:52]} 6. c4 {[%clk 0:02:58]}  c6 {[%clk 0:02:52]} 7. O-O {[%clk 0:02:58]}  Bd6 {[%clk 0:02:52]} 8. d3 {[%clk 0:02:57]}  O-O {[%clk 0:02:51]} 9. Nbd2 {[%clk 0:02:52]}  Qe7 {[%clk 0:02:50]} 10. a3 {[%clk 0:02:52]}  a5 {[%clk 0:02:49]} 11. Qc2 {[%clk 0:02:51]}  e5 {[%clk 0:02:37]} 12. h3 {[%clk 0:02:49]}  Be6 {[%clk 0:02:14]} 13. e4 {[%clk 0:02:45]}  dxe4 {[%clk 0:02:05]} 14. dxe4 {[%clk 0:02:39]}  h6 {[%clk 0:02:01]} 15. Nh4 {[%clk 0:02:38]}  Rfd8 {[%clk 0:01:46]} 16. Nf5 {[%clk 0:02:37]}  Bxf5 {[%clk 0:01:37]} 17. exf5 {[%clk 0:02:38]}  Bc5 {[%clk 0:01:31]} 18. Rfe1 {[%clk 0:02:24]}  Qd6 {[%clk 0:01:16]} 19. Ne4 {[%clk 0:02:17]}  Nxe4 {[%clk 0:01:13]} 20. Rxe4 {[%clk 0:02:17]}  Bd4 {[%clk 0:01:07]} 21. Rd1 {[%clk 0:02:09]}  Nf6 {[%clk 0:01:02]} 22. Ree1 {[%clk 0:02:04]}  Qc5 {[%clk 0:00:55]} 23. Bc1 {[%clk 0:01:51]}  Rd7 {[%clk 0:00:49]} 24. Rf1 {[%clk 0:01:37]}  Rad8 {[%clk 0:00:44]} 25. Kh2 {[%clk 0:01:35]}  b5 {[%clk 0:00:18]} 26. Qe2 {[%clk 0:01:27]}  a4 {[%clk 0:00:16]} 27. b4 {[%clk 0:01:24]}  Qxc4 {[%clk 0:00:14]} 28. Qxc4 {[%clk 0:01:24]}  bxc4 {[%clk 0:00:15]} 29. Bxc6 {[%clk 0:01:24]}  Ra7 {[%clk 0:00:13]} 30. f4 {[%clk 0:01:21]}  Rc8 {[%clk 0:00:12]} 31. fxe5 {[%clk 0:01:20]}  Bxe5 {[%clk 0:00:12]} 32. Be3 {[%clk 0:01:19]}  Re7 {[%clk 0:00:10]} 33. Bc5 {[%clk 0:01:16]}  Rec7 {[%clk 0:00:08]} 34. Bxa4 {[%clk 0:01:15]}  c3 {[%clk 0:00:08]} 35. Bc2 {[%clk 0:01:12]}  Nh5 {[%clk 0:00:06]} 36. Rf3 {[%clk 0:01:12]}  Nf6 {[%clk 0:00:03]} 37. Kg2 {[%clk 0:01:11]}  Rxc5 {[%clk 0:00:01]} 38. bxc5 {[%clk 0:01:10]}  Rxc5 {[%clk 0:00:02]} 39. Rd8+ {[%clk 0:01:09]}  Kh7 {[%clk 0:00:02]} 40. Ra8 {[%clk 0:01:07]}  Rb5 {[%clk 0:00:02]} 41. a4 {[%clk 0:01:06]}  Rb2 {[%clk 0:00:03]} 42. Rf2 {[%clk 0:01:07]}  Nd5 {[%clk 0:00:03]} 43. Kf3 {[%clk 0:00:58]}  Nb4 {[%clk 0:00:03]} 44. Be4 {[%clk 0:00:58]}  c2 {[%clk 0:00:03]} 45. Rc8 {[%clk 0:00:54]}  Rb3+ {[%clk 0:00:02]} 46. Kg2 {[%clk 0:00:53]}  Rxg3+ {[%clk 0:00:01]} 47. Kf1 {[%clk 0:00:51]} 1-0


[Site "https://www.chess.com"]